bitfinex-derivatives/quotes_SOLF0:USTF0_20250808
["timestamp","ask_amount","ask_price","bid_price","bid_amount"]
[1754658915849,4.0543218,175.91,175.84,4.0543218]
[1754658915850,3.21,175.89,175.86,3.08]
[1754658916048,4.0543218,175.91,175.86,8.7642]
[1754658916249,3.21,175.88,175.86,8.7642]
[1754658916748,3.21,175.88,175.87,5.6841]
[1754658917250,3.21,175.88,175.87,8.7641]
[1754658917556,3.21,175.92,175.88,8.7636]
[1754658917848,3.21,175.92,175.87,5.6839]
[1754658918240,3.21,175.92,175.85,3.08]
[1754658918646,3.21,175.92,175.87,5.6841]
[1754658919149,3.21,175.92,175.88,5.6838]
[1754658919651,3.21,175.92,175.86,3.08]
[1754658919851,3.21,175.92,175.86,8.7644]
[1754658920154,3.21,175.91,175.84,7.1343218]
[1754658920450,3.21,175.91,175.84,4.0543218]
[1754658920650,3.21,175.91,175.85,3.08]
[1754658920852,3.21,175.9,175.84,4.0543218]
[1754658921245,5.6829,175.91,175.86,3.08]
[1754658921446,4.0543218,175.91,175.83,4.0543218]
[1754658921753,3.21,175.88,175.83,3.08]
[1754658921956,4.0543218,175.85,175.77,4.0543218]
[1754658922251,3.21,175.84,175.78,3.08]
[1754658922448,3.21,175.83,175.67,11.3809]
[1754658922653,3.21,175.85,175.79,3.08]
[1754658923049,8.895,175.85,175.79,8.7666]
[1754658923253,3.21,175.84,175.79,8.7666]
[1754658923456,3.21,175.84,175.79,3.08]
[1754658923651,8.8951,175.84,175.79,8.7667]
[1754658923847,3.21,175.81,175.7,3.08]
[1754658924051,3.21,175.81,175.77,4.0543218]
[1754658924251,3.21,175.84,175.77,4.0543218]
[1754658924448,3.21,175.79,175.69,3.08]
[1754658924654,4.0543218,175.78,175.72,3.08]
[1754658924853,3.21,175.77,175.72,8.7689]
[1754658925053,3.21,175.77,175.73,3.08]
[1754658925250,4.0543218,175.74,175.59,15.4406218]
[1754658925452,4.0543218,175.78,175.71,4.0543218]
[1754658925757,3.21,175.76,175.74,3.08]
[1754658926156,3.21,175.75,175.62,3.08]
[1754658926347,3.21,175.75,175.7,4.0543218]
[1754658926558,3.21,175.74,175.72,3.08]
[1754658927153,4.0543218,175.78,175.7,4.0543218]
[1754658927358,3.21,175.73,175.66,4.0543218]
[1754658927558,3.21,175.73,175.67,3.08]
[1754658927857,4.0543218,175.76,175.68,4.0543218]
[1754658928057,3.21,175.72,175.7,3.08]
[1754658928356,3.21,175.72,175.7,12.8237218]
[1754658928557,3.21,175.72,175.7,7.1343218]
[1754658929056,3.21,175.72,175.71,5.6893]
[1754658930257,3.21,175.72,175.66,3.08]
[1754658930459,3.21,175.75,175.67,4.0543218]
[1754658930860,3.21,175.73,175.68,5.6902]
[1754658931359,3.21,175.72,175.69,7.1343218]
[1754658931959,3.21,175.75,175.7,8.7694]
[1754658932558,3.21,175.73,175.61,3.08]
[1754658932857,3.21,175.73,175.6,11.3858]
[1754658932858,3.21,175.73,175.66,3.08]
[1754658933159,3.21,175.73,175.67,5.6904]
[1754658933757,8.8987,175.73,175.67,5.6904]
[1754658933960,3.21,175.72,175.69,3.08]
[1754658934153,3.21,175.72,175.7,3.08]
[1754658934355,4.0543218,175.76,175.7,3.08]
[1754658934556,3.21,175.73,175.6,3.08]
[1754658934755,3.21,175.73,175.66,7.1343218]
[1754658934957,4.0543218,175.72,175.66,3.08]
[1754658935160,3.21,175.69,175.62,7.1343218]
[1754658935556,8.9002,175.69,175.63,5.6919]
[1754658935763,3.21,175.65,175.59,3.08]
[1754658935962,3.23,175.69,175.62,7.2143218]
[1754658936158,3.23,175.69,175.64,12.9057218]
[1754658936463,111.7143218,175.75,175.66,4.0543218]
[1754658936759,3.23,175.69,175.67,8.8504]
[1754658936964,3.23,175.75,175.68,4.0543218]
[1754658937158,3.23,175.75,175.71,4.0543218]
[1754658937463,3.23,175.74,175.67,4.0543218]
[1754658937664,3.23,175.74,175.69,5.69]
[1754658937967,3.23,175.74,175.6,3.16]
[1754658938158,3.23,175.74,175.66,4.0543218]
[1754658938358,5.6885,175.74,175.68,5.6901]
[1754658938558,3.23,175.73,175.68,3.16]
[1754658938864,9.7425218,175.75,175.69,5.6898]
[1754658939068,4.0543218,175.75,175.69,3.16]
[1754658939262,3.23,175.71,175.69,3.16]
[1754658939766,5.6879,175.76,175.68,4.0543218]
[1754658939960,3.23,175.75,175.69,3.16]
[1754658940161,3.23,175.75,175.68,4.0543218]
[1754658940162,3.23,175.75,175.7,8.8495]
[1754658940359,3.23,175.76,175.7,7.2143218]
[1754658940760,3.23,175.76,175.71,3.16]
[1754658940964,3.23,175.74,175.72,7.2143218]
[1754658941366,3.23,175.73,175.72,7.2143218]
[1754658941565,3.23,175.73,175.72,9.7432218]
[1754658941765,4.0543218,175.79,175.72,4.0543218]
[1754658941968,3.23,175.75,175.72,7.2143218]
[1754658942167,5.6871,175.78,175.72,12.9031218]
[1754658942468,3.23,175.77,175.72,7.2143218]
[1754658942669,3.23,175.77,175.74,5.6883]
[1754658942871,4.0543218,175.79,175.74,5.6883]
[1754658943068,3.23,175.78,175.74,5.6883]
[1754658943268,5.6867,175.8,175.59,4.0543218]
[1754658943269,3.23,175.8,175.76,4.0543218]
[1754658943571,3.23,175.87,175.77,3.16]
[1754658943873,3.23,175.85,175.79,4.0543218]
[1754658944274,8.9149,175.85,175.79,9.7410218]
[1754658944575,3.23,175.85,175.79,7.2143218]
[1754658944775,3.23,175.85,175.82,5.6855]
[1754658945175,3.23,175.85,175.79,3.16]
[1754658945376,3.23,175.83,175.77,7.2143218]
[1754658945780,3.23,175.83,175.79,5.6865]
[1754658946273,3.23,175.84,175.79,5.6865]
[1754658946472,3.23,175.84,175.8,8.8464]
[1754658946676,3.23,175.87,175.82,3.16]
[1754658946877,3.23,175.84,175.81,7.2143218]
[1754658947075,3.23,175.84,175.82,5.6858]
[1754658947479,3.23,175.84,175.82,8.8458]
[1754658947976,3.23,175.84,175.83,5.6855]
[1754658948178,107.72,175.89,175.83,7.2143218]
[1754658948382,3.23,175.86,175.84,3.16]
[1754658948788,3.23,175.86,175.84,8.8449]
[1754658949280,3.23,175.9,175.83,4.0543218]
[1754658949489,3.23,175.88,175.86,3.15]
[1754658950380,3.23,175.87,175.85,4.0543218]
[1754658950785,3.23,175.87,175.85,7.2043218]
[1754658952386,3.23,175.89,175.86,3.15]
[1754658952579,3.23,175.88,175.86,3.15]
[1754658953085,382.62,175.91,175.85,4.0543218]
[1754658953378,107.48,175.93,175.89,3.15]
[1754658953584,3.23,175.92,175.85,7.2043218]
[1754658953785,5.6829,175.91,175.85,12.8889218]
[1754658953989,3.23,175.9,175.85,12.8889218]
[1754658954285,3.23,175.89,175.85,3.15]
[1754658954484,3.23,175.89,175.84,8.8351]
[1754658955587,3.23,175.89,175.85,5.6848]
[1754658955786,3.23,175.89,175.84,3.15]
[1754658955987,3.23,175.88,175.85,3.15]
[1754658956190,3.23,175.87,175.86,5.6843]
[1754658956887,3.23,175.92,175.86,3.15]
[1754658957084,3.23,175.92,175.89,3.15]
[1754658957385,3.23,175.92,175.91,8.8329]
[1754658957790,3.23,175.91,175.89,3.15]
[1754658958087,3.23,175.9,175.88,9.7380218]
[1754658958482,3.23,175.9,175.88,12.8880218]
[1754658958681,3.23,175.89,175.87,9.7382218]
[1754658958880,3.23,175.89,175.87,12.8882218]
[1754658959087,3.23,175.91,175.8,3.15]
[1754658959287,3.23,175.91,175.84,4.0543218]
[1754658959487,3.23,175.94,175.88,7.2043218]
[1754658959690,3.23,175.94,175.88,4.0543218]
[1754658959988,3.23,175.92,175.84,7.2043218]
[1754658960387,3.23,175.9,175.84,7.2043218]
[1754658960581,3.23,175.9,175.82,4.0543218]
[1754658960786,111.6543218,175.95,175.79,3.15]
[1754658960787,3.23,175.86,175.79,3.15]
[1754658960982,5.6846,175.86,175.81,5.6861]
[1754658961186,3.23,175.85,175.79,3.15]
[1754658961585,3.23,175.84,175.81,3.15]
[1754658961786,3.23,175.86,175.84,3.15]
[1754658961988,3.23,175.89,175.85,5.6846]
[1754658962290,3.23,175.89,175.83,3.15]
[1754658962492,3.23,175.89,175.85,5.6846]
[1754658962687,3.23,175.89,175.84,7.2043218]
[1754658962887,107.68,175.91,175.84,4.0543218]
[1754658963090,3.23,175.9,175.88,5.6837]
[1754658963294,107.68,175.91,175.88,4.0543218]
[1754658963591,110.91,175.91,175.9,5.6832]
[1754658963890,3.23,175.91,175.9,5.6832]
[1754658964692,3.23,175.91,175.89,8.8766244]
[1754658965292,3.23,175.9,175.89,5.7266244]
[1754658965593,3.23,175.9,175.89,0.0432244]
[1754658966483,3.23,175.9,175.89,8.8267244]
[1754658966788,3.24814699,175.92,175.89,3.1432244]
[1754658966994,3.21,175.9,175.89,3.1432244]
[1754658967292,3.21,175.9,175.89,8.8267244]
[1754658967992,0.03814699,175.92,175.89,8.8267244]
[1754658968290,3.21,175.91,175.89,8.8267244]
[1754658968591,3.21,175.91,175.9,5.6832]
[1754658968794,3.21,175.91,175.89,3.1432244]
[1754658969093,0.03814699,175.92,175.89,3.1432244]
[1754658969292,3.21,175.91,175.89,3.1432244]
[1754658971989,3.21,175.9,175.89,0.0432244]
[1754658972293,3.21,175.9,175.84,4.0543218]
[1754658972493,3.21,175.9,175.85,5.6846]
[1754658972690,3.21,175.9,175.86,7.1543218]
[1754658972892,3.21,175.88,175.86,7.1543218]
[1754658973094,3.21,175.93,175.86,4.0543218]
[1754658973493,3.21,175.88,175.86,7.1543218]
[1754658973692,3.21,175.87,175.86,7.1543218]
[1754658974698,3.25146219,175.89,175.86,12.8385218]
[1754658974995,3.21,175.88,175.87,3.1]
[1754658975191,0.04146219,175.89,175.88,8.7839]
[1754658975392,0.04146219,175.89,175.88,12.8382218]
[1754658975794,3.21,175.93,175.88,4.0543218]
[1754658975991,3.21,175.93,175.92,4.0543218]
[1754658977398,8.8924,175.93,175.86,7.1543218]
[1754658977591,3.21,175.92,175.87,5.6842]
[1754658977789,3.21,175.92,175.87,8.7842]
[1754658977993,3.21,175.92,175.88,4.0543218]
[1754658978188,107.42,175.94,175.88,7.1543218]
[1754658978398,107.42,175.94,175.88,4.0543218]
[1754658978598,3.21,175.93,175.88,9.7379218]
[1754658978900,3.21,175.93,175.88,7.1543218]
[1754658979493,3.21,175.93,175.89,3.1]
[1754658979705,3.21,175.93,175.88,4.0543218]
[1754658979892,3.21,175.93,175.88,7.1543218]
[1754658980097,3.21,175.93,175.88,4.0543218]
[1754658981199,3.21,175.93,175.88,9.7379218]
[1754658981689,3.21,175.94,175.9,4.0543218]
[1754658981892,107.2,175.97,175.91,3.1]
[1754658982101,3.21,175.96,175.92,3.1]
[1754658982403,3.21,175.92,175.82,4.0543218]
[1754658982598,3.21,175.88,175.81,3.1]
[1754658982790,3.21,175.86,175.81,3.1]
[1754658982995,3.21,175.88,175.82,3.1]
[1754658983498,3.21,175.88,175.83,8.7853]
[1754658984595,113.94412676,175.91,175.75,382.42]
[1754658984796,3.21,175.88,175.79,9.74412676]
[1754658985003,3.21,175.88,175.8,3.1]
[1754658985299,3.21,175.88,175.81,5.6859]
[1754658985601,3.21,175.88,175.8,3.1]
[1754658986101,3.21,175.88,175.82,5.6857]
[1754658986704,3.21,175.88,175.81,5.686]
[1754658986998,107.3,175.91,175.78,3.1]
[1754658986999,3.21,175.86,175.78,3.1]
[1754658987205,8.8947,175.86,175.78,3.1]
[1754658987390,3.21,175.85,175.81,3.1]
[1754658987595,3.21,175.84,175.81,3.1]
[1754658987795,3.21,175.83,175.81,3.1]
[1754658988395,3.21,175.84,175.82,8.7858]
[1754658988707,3.21,175.84,175.82,3.1]
[1754658989101,3.21,175.88,175.84,5.6849]
[1754658989300,3.21,175.88,175.84,8.7849]
[1754658990003,3.21,175.88,175.81,6.64412676]
[1754658990204,3.21,175.88,175.82,3.1]
[1754658990401,3.21,175.88,175.83,6.64412676]
[1754658990705,3.21,175.88,175.87,3.1]
[1754658990903,3.21,175.9,175.87,3.1]
[1754658991210,3.21,175.9,175.88,3.1]
[1754658991395,3.21,175.89,175.87,3.1]
[1754658991693,107.14,175.91,175.88,5.6839]
[1754658991898,3.21,175.9,175.88,8.7839]
[1754658992197,3.21,175.9,175.88,3.1]
[1754658992402,12.32572676,175.95,175.85,6.64412676]
[1754658992705,12.32572676,175.95,175.68,141.3104]
[1754658992706,3.21,175.9,175.81,9.74412676]
[1754658992906,3.21,175.88,175.79,6.64412676]
[1754658993204,3.21,175.88,175.79,9.74412676]
[1754658993600,3.21,175.87,175.79,9.74412676]
[1754658994207,3.21,175.87,175.8,3.1]
[1754658994906,5.6844,175.87,175.81,5.6859]
[1754658995105,3.21,175.86,175.8,3.1]
[1754658995906,3.21,175.86,175.84,5.6851]
[1754658996107,3.21,175.86,175.84,3.09]
[1754658996307,3.11,175.88,175.85,3.09]
[1754658996506,3.11,175.87,175.85,3.09]
[1754658996912,3.11,175.86,175.85,8.7747]
[1754658997202,3.11,175.88,175.79,6.64412676]
[1754658997397,3.11,175.88,175.8,3.09]
[1754658997597,3.11,175.87,175.82,5.6857]
[1754658998498,3.11,175.87,175.82,8.7757]
[1754658998698,3.11,175.87,175.83,5.6852]
[1754658999198,5.6832,175.9,175.82,3.09]
[1754658999406,3.11,175.89,175.82,3.09]
[1754658999910,3.11,175.89,175.84,5.6849]
[1754659000211,3.11,175.89,175.85,3.09]
[1754659000711,6.64412676,175.91,175.85,3.09]
[1754659000901,107.1,175.92,175.87,3.09]
[1754659000902,3.11,175.9,175.87,3.09]
[1754659001108,3.11,175.89,175.87,3.09]
[1754659001304,3.11,175.89,175.87,8.774]
[1754659001502,3.11,175.89,175.87,3.09]
[1754659001808,107.1,175.92,175.87,3.09]
[1754659002008,3.11,175.88,175.85,9.73412676]
[1754659002209,3.11,175.88,175.86,3.09]
[1754659002409,3.11,175.91,175.84,5.6849]
[1754659002607,3.11,175.91,175.83,6.64412676]
[1754659002909,3.11,175.91,175.85,5.6846]
[1754659003207,3.11,175.9,175.85,5.6846]
[1754659004810,3.11,175.89,175.84,5.6851]
[1754659005311,3.11,175.88,175.82,3.09]
[1754659005509,3.11,175.88,175.85,5.6846]
[1754659006110,3.11,175.88,175.84,3.09]
[1754659006310,3.11,175.91,175.87,6.64412676]
[1754659006510,3.11,175.91,175.88,3.09]
[1754659006714,3.11,175.9,175.88,7.1643088]
[1754659007012,3.11,175.9,175.89,3.09]
[1754659007210,3.11,175.92,175.88,4.0743088]
[1754659007512,3.11,175.94,175.92,3.09]
[1754659007913,3.11,175.94,175.92,8.7725]
[1754659008210,3.11,175.93,175.9,7.1643088]
[1754659008409,3.11,175.93,175.92,8.7726]
[1754659008609,3.11,175.95,175.92,12.8469088]
[1754659008808,3.11,175.94,175.92,12.8469088]
[1754659009310,3.11,175.96,175.92,4.0743088]
[1754659009509,3.11,175.94,175.87,4.0743088]
[1754659009709,3.11,175.94,175.87,7.1643088]
[1754659009911,3.11,175.94,175.89,5.6833]
[1754659010109,3.11,175.94,175.87,7.1643088]
[1754659011014,3.11,175.94,175.85,4.0743088]
[1754659011015,4.0743088,175.93,175.85,4.0743088]
[1754659011220,5.683,175.91,175.86,5.6843]
[1754659011409,3.11,175.9,175.86,5.6843]
[1754659011708,3.11,175.9,175.87,5.684]
[1754659011908,3.11,175.92,175.87,4.0743088]
[1754659012118,3.11,175.9,175.88,3.09]
[1754659012410,5.682,175.94,175.89,5.6834]
[1754659012715,3.11,175.93,175.89,5.6834]
[1754659013213,6.64105451,175.94,175.85,6.64105451]
[1754659013410,3.11,175.93,175.85,9.73105451]
[1754659013718,5.6828,175.92,175.88,5.6836]
[1754659013911,3.11,175.91,175.85,9.73105451]
[1754659014518,3.11,175.91,175.84,3.09]
[1754659015115,3.11,175.9,175.86,5.6843]
[1754659015321,3.11,175.89,175.82,3.09]
[1754659015712,3.11,175.86,175.82,5.6857]
[1754659015911,3.11,175.86,175.8,3.09]
[1754659016215,8.7947,175.86,175.81,5.686]
[1754659016411,3.11,175.85,175.81,5.686]
[1754659016913,3.11,175.83,175.8,5.6864]
[1754659017109,6.64105451,175.88,175.8,5.6864]
[1754659017313,3.11,175.87,175.81,5.6859]
[1754659017917,5.6847,175.86,175.81,5.6859]
[1754659018116,3.11,175.85,175.81,5.6859]
[1754659018316,3.11,175.85,175.81,8.7759]
[1754659019518,6.64105451,175.88,175.81,8.7759]
[1754659019818,3.11,175.87,175.81,8.7759]
[1754659020013,3.11,175.86,175.81,8.7759]
[1754659020219,3.11,175.86,175.82,3.09]
[1754659020519,3.11,175.86,175.8,6.64105451]
[1754659020719,3.11,175.89,175.83,3.09]
[1754659021219,3.11,175.88,175.85,8.7748]
[1754659021518,3.11,175.87,175.85,8.7748]
[1754659021715,3.11,175.89,175.86,5.6844]
[1754659021920,3.11,175.89,175.87,3.09]
[1754659022720,3.11,175.89,175.87,5.684]
[1754659022920,3.11,175.89,175.88,3.09]
[1754659023221,109.75,175.9,175.88,3.09]
[1754659023417,3.11,175.89,175.86,3.09]
[1754659023620,3.11,175.88,175.86,3.09]
[1754659024221,3.11,175.88,175.87,3.09]
[1754659024423,3.11,175.93,175.87,3.09]
[1754659024719,3.11,175.93,175.88,3.09]
[1754659025222,3.11,175.92,175.9,3.09]
[1754659025825,3.11,175.91,175.9,3.09]
[1754659026023,3.11,175.91,175.88,6.64105451]
[1754659026219,3.11,175.91,175.89,2.99]
[1754659027519,112.2817,175.95,175.88,6.64105451]
[1754659027724,3.02,175.94,175.89,2.99]
[1754659028124,3.02,175.94,175.9,2.99]
[1754659028825,3.02,175.94,175.88,6.64105451]
[1754659029026,8.7021,175.94,175.88,9.63105451]
[1754659029425,3.02,175.94,175.89,2.99]
[1754659029626,106.6,175.95,175.9,6.64105451]
[1754659029827,106.6,175.95,175.91,2.99]
[1754659030027,106.6,175.95,175.9,12.32405451]
[1754659030229,109.62,175.95,175.93,2.99]
[1754659030429,109.62,175.95,175.94,2.99]
[1754659030728,3.02,175.95,175.94,2.99]
[1754659031028,3.02,175.97,175.94,2.99]
[1754659031327,3.02,175.96,175.94,2.99]
[1754659031824,3.02,175.98,175.9,2.99]
[1754659032023,3.02,175.95,175.87,2.99]
[1754659032227,3.02,175.95,175.85,6.64105451]
[1754659032426,3.02,175.89,175.84,9.63105451]
[1754659032627,3.02,175.89,175.85,2.99]
[1754659032827,106.6,175.93,175.85,2.99]
[1754659033027,106.6,175.93,175.85,5.6848]
[1754659033328,106.6,175.93,175.84,6.64105451]
[1754659033329,3.02,175.92,175.86,2.99]
[1754659034128,3.02,175.92,175.84,2.99]
[1754659034325,5.6835,175.9,175.84,2.99]
[1754659034630,3.02,175.92,175.84,2.99]
[1754659035025,3.02,175.92,175.86,5.6843]
[1754659035228,3.02,175.92,175.87,2.99]
[1754659035434,5.6823,175.93,175.88,2.99]
[1754659035735,3.02,175.9,175.88,2.99]
[1754659036835,3.02,175.89,175.88,2.99]
[1754659037838,3.02,175.9,175.86,2.99]
[1754659038338,3.02,175.9,175.78,241.64105451]
[1754659038339,3.02,175.91,175.82,2.99]
[1754659038537,3.02,175.89,175.82,2.99]
[1754659038732,3.02,175.88,175.82,2.99]
[1754659038934,5.6844,175.87,175.82,2.99]
[1754659039134,3.02,175.86,175.82,2.99]
[1754659039334,3.02,175.86,175.8,7.06758723]
[1754659039532,3.02,175.86,175.79,7.06758723]
[1754659039837,3.02,175.88,175.82,2.99]
[1754659040037,8.7041,175.88,175.82,2.99]
[1754659040337,3.02,175.87,175.83,2.99]
[1754659040532,4.07758723,175.91,175.84,2.99]
[1754659040739,3.02,175.89,175.84,2.99]
[1754659040934,3.02,175.88,175.86,5.6845]
[1754659041138,3.02,175.88,175.86,8.6745]
[1754659041939,3.02,175.9,175.88,2.99]
[1754659042140,3.02,175.9,175.89,2.99]
[1754659042442,3.02,175.93,175.88,2.99]
[1754659042639,3.02,175.93,175.87,6.64233316]
[1754659042833,3.02,175.92,175.89,2.99]
[1754659043034,3.02,175.92,175.88,2.99]
[1754659043234,3.02,175.92,175.87,6.64233316]
[1754659043434,3.02,175.92,175.87,15.31633316]
[1754659043636,3.02,175.92,175.87,12.32633316]
[1754659043835,3.02,175.91,175.89,2.99]
[1754659044936,106.58,175.96,175.87,6.64233316]
[1754659045138,3.02,175.93,175.9,2.99]
[1754659045338,3.02,175.93,175.91,2.99]
[1754659047146,3.02,175.92,175.91,2.99]
[1754659047947,3.02,175.95,175.91,8.6729]
[1754659048145,3.02,175.95,175.91,6.64233316]
[1754659048448,3.02,175.94,175.92,2.99]
[1754659049045,3.02,175.93,175.91,12.32513316]
[1754659049346,3.02,175.95,175.93,2.99]
[1754659049848,3.02,175.94,175.92,8.6723]
[1754659050145,3.02,175.94,175.91,6.64233316]
[1754659050338,3.02,175.95,175.94,2.99]
[1754659050750,3.02,175.95,175.94,5.6817]
[1754659051146,3.02,176.0,175.94,2.99]
[1754659051348,3.02,175.98,175.96,2.99]
[1754659051544,3.02,175.98,175.97,2.99]
[1754659051745,3.02,176.0,175.95,6.64233316]
[1754659052043,3.02,175.99,175.93,2.99]
[1754659052440,3.02,175.98,175.93,8.672]
[1754659052643,3.02,175.98,175.94,2.99]
[1754659053046,3.02,175.98,175.93,2.99]
[1754659053246,3.02,175.97,175.94,2.99]
[1754659053446,106.44,176.02,175.93,2.99]
[1754659053748,3.02,176.01,175.94,6.64233316]
[1754659053950,3.02,176.0,175.96,6.64233316]
[1754659054151,3.02,176.0,175.99,2.99]
[1754659054647,3.02,176.0,175.98,5.6806]
[1754659054854,3.02,176.01,175.98,6.64233316]
[1754659055047,3.02,176.0,175.99,2.99]
[1754659055855,3.02,176.0,175.98,9.63233316]
[1754659056153,3.03,176.01,175.99,3.18]
[1754659056549,106.44,176.02,175.99,8.8602]
[1754659056749,106.44,176.02,176.0,3.18]
[1754659057049,3.03,176.02,176.0,3.18]
[1754659057457,3.03,176.02,176.01,3.18]
[1754659057652,5.6781,176.06,176.01,3.18]
[1754659057855,3.03,176.06,176.01,3.18]
[1754659058753,3.03,176.08,176.02,9.82233316]
[1754659059155,5.6778,176.07,176.02,9.82233316]
[1754659059356,3.03,176.06,176.02,9.82233316]
[1754659059857,8.7081,176.06,176.0,12.32223316]
[1754659060055,3.03,176.05,176.0,12.32223316]
[1754659060255,3.03,176.05,176.0,15.50223316]
[1754659060657,3.03,176.05,176.0,8.8599]
[1754659060857,3.03,176.08,176.0,9.82233316]
[1754659061060,3.03,176.08,175.99,5.6802]
[1754659061457,5.6788,176.04,175.99,5.6802]
[1754659061655,3.03,176.03,175.99,5.6802]
[1754659061859,3.03,176.06,175.98,12.32283316]
[1754659062049,3.03,176.02,175.98,12.32283316]
[1754659062254,3.03,176.02,175.98,9.82233316]
[1754659062455,3.03,176.01,175.98,6.64233316]
[1754659062656,3.03,176.01,175.99,8.8601]
[1754659062857,3.03,176.0,175.99,3.18]
[1754659063057,3.03,176.05,175.99,3.18]
[1754659063258,5.6787,176.04,175.99,8.8601]
[1754659063453,3.03,176.03,175.99,3.18]
[1754659063960,8.7091,176.03,175.99,3.18]
[1754659064156,3.03,176.01,175.99,3.18]
[1754659064652,3.03,176.01,175.99,8.8603]
[1754659064853,3.03,176.01,175.99,3.18]
[1754659065055,3.03,176.05,175.99,3.18]
[1754659065356,3.03,176.03,175.99,3.18]
[1754659065555,3.03,176.05,176.02,7.24963678]
[1754659065750,3.03,176.08,176.02,7.24963678]
[1754659065956,3.03,176.06,176.02,12.92893678]
[1754659066460,8.7081,176.06,176.02,7.24963678]
[1754659066658,3.03,176.05,176.02,7.24963678]
[1754659066860,3.03,176.03,176.02,7.24963678]
[1754659067963,3.03,176.03,176.02,12.92893678]
[1754659068258,3.03,176.05,176.03,3.18]
[1754659068461,3.03,176.08,176.03,3.18]
[1754659068662,3.03,176.07,176.02,4.06963678]
[1754659068962,3.03,176.07,176.0,4.06963678]
[1754659069159,3.03,176.03,176.0,4.06963678]
[1754659069364,3.03,176.07,176.0,4.06963678]
[1754659069762,5.6782,176.06,176.0,12.92943678]
[1754659069958,3.03,176.05,176.0,7.24963678]
[1754659070262,8.7086,176.05,176.0,7.24963678]
[1754659070464,3.03,176.04,176.0,7.24963678]
[1754659070764,3.03,176.04,176.01,3.18]
[1754659071664,3.03,176.03,176.01,3.18]
[1754659072065,3.03,176.02,176.01,3.18]
[1754659072767,3.03,176.04,176.01,3.18]
[1754659073061,5.6779,176.07,176.01,5.6796]
[1754659073261,3.03,176.06,176.03,3.18]
[1754659073457,3.03,176.09,176.02,7.24963678]
[1754659073664,5.6777,176.08,176.02,7.24963678]
[1754659073866,3.03,176.07,176.02,7.24963678]
[1754659074761,3.03,176.06,176.02,7.24963678]
[1754659074968,3.03,176.06,176.0,4.06963678]
[1754659075161,5.6786,176.05,176.0,9.74953678]
[1754659075467,3.03,176.04,176.0,12.92953678]
[1754659075669,3.03,176.04,176.0,9.74953678]
[1754659075968,3.03,176.04,176.01,3.18]
[1754659077071,3.03,176.04,176.0,4.06963678]
[1754659077271,3.03,176.03,176.01,3.18]
[1754659077470,3.03,176.05,176.0,4.06963678]